fUST/lending_fUST_20241008
["ID","MTS","AMOUNT","RATE_DAILY","PERIOD"]
[340043029,1728383450081,-158.0,0.00042,2]
[340043030,1728383450090,-150.0,0.00042,2]
[340043031,1728383450100,-99819.0276416,0.00042,120]
[340043032,1728383450109,-1323.47,0.00042191,120]
[340043033,1728383450119,-600.0,0.00042234,2]
[340043034,1728383450129,-2152.65631744,0.00042299,28]
[340043035,1728383450138,-821.9023209,0.00042466,30]
[340043036,1728383450147,-722.82137976,0.000425,90]
[340043037,1728383450375,-1729.54799274,0.000425,90]
[340043107,1728384631901,-202.50657475,0.00030293,2]
[340043108,1728384631911,-1111.0,0.00032111,120]
[340043109,1728384631921,-300.0,0.00032423,2]
[340043110,1728384631931,-400.0,0.00032423,2]
[340043111,1728384631940,-150.0,0.00032424,2]
[340043112,1728384631950,-525.0,0.00032424,2]
[340043113,1728384631960,-1218.0,0.00032424,2]
[340043114,1728384631969,-290.57591539,0.00033928,2]
[340043115,1728384631978,-329.34774786,0.0003423,2]
[340043120,1728384638206,-8146.61154654,0.0003423,2]
[340043121,1728384638216,-581.95057177,0.00034742,2]
[340043122,1728384638228,-1776.93194913,0.00034742,2]
[340043123,1728384638238,-560.0,0.00034857,2]
[340043124,1728384638248,-150.0,0.00035424,2]
[340043125,1728384638260,-525.0,0.00035424,2]
[340043126,1728384638271,-1218.0,0.00035424,2]
[340043127,1728384638280,-440.0,0.00037474,2]
[340043128,1728384638290,-150.0,0.00038424,2]
[340043129,1728384638300,-525.0,0.00038424,2]
[340043130,1728384638310,-1218.0,0.00038424,2]
[340043131,1728384638320,-178.598,0.00039726,55]
[340043132,1728384638329,-500.0,0.00039899,2]
[340043133,1728384638339,-2000.0,0.0004,40]
[340043134,1728384638350,-1227.33463191,0.0004,30]
[340043169,1728384645933,-747.57823519,0.0004,30]
[340043170,1728384645959,-34740.15268298,0.0004,30]
[340043171,1728384645969,-433.165099,0.0004,2]
[340043172,1728384645979,-595.83858655,0.0004,120]
[340043173,1728384645990,-500.0,0.00040447,2]
[340043174,1728384646000,-500.0,0.00040995,2]
[340043175,1728384646011,-2000.0,0.00041,41]
[340043176,1728384646022,-150.0,0.00041424,2]
[340043177,1728384646032,-1218.0,0.00041424,2]
[340043178,1728384646042,-500.0,0.00041543,2]
[340043179,1728384646053,-600.0,0.00041798,2]
[340043180,1728384646063,-2000.0,0.00042,42]
[340043181,1728384646072,-2200.0,0.00042,30]
[340043182,1728384646083,-500.0,0.00042091,2]
[340043183,1728384646093,-153.0,0.00042125,120]
[340043184,1728384646104,-153.0,0.00042125,120]
[340043185,1728384646114,-153.0,0.00042125,120]
[340043186,1728384646124,-153.0,0.00042125,120]
[340043187,1728384646134,-153.0,0.00042125,120]
[340043188,1728384646144,-153.0,0.00042138,120]
[340043189,1728384646154,-153.0,0.00042138,120]
[340043190,1728384646164,-153.0,0.00042138,120]
[340043191,1728384646175,-153.0,0.00042138,120]
[340043192,1728384646185,-153.0,0.00042138,120]
[340043193,1728384646195,-153.0,0.00042138,120]
[340043194,1728384646205,-153.0,0.00042138,120]
[340043195,1728384646214,-153.0,0.00042138,120]
[340043196,1728384646224,-153.0,0.00042138,120]
[340043197,1728384646234,-153.0,0.00042138,120]
[340043198,1728384646244,-153.0,0.0004214,120]
[340043199,1728384646254,-153.0,0.0004214,120]
[340043200,1728384646264,-153.0,0.0004214,120]
[340043201,1728384646276,-153.0,0.0004214,120]
[340043202,1728384646287,-153.0,0.0004214,120]
[340043203,1728384646297,-153.0,0.0004214,120]
[340043204,1728384646307,-153.0,0.0004214,120]
[340043205,1728384646317,-153.0,0.00042155,120]
[340043206,1728384646327,-153.0,0.00042155,120]
[340043207,1728384646336,-153.0,0.00042155,120]
[340043208,1728384646346,-153.0,0.00042155,120]
[340043209,1728384646358,-153.0,0.00042155,120]
[340043210,1728384646368,-153.0,0.00042155,120]
[340043211,1728384646379,-153.0,0.00042155,120]
[340043212,1728384646390,-153.0,0.00042155,120]
[340043213,1728384646400,-153.0,0.00042155,120]
[340043214,1728384646410,-153.0,0.00042155,120]
[340043215,1728384646420,-271.81563265,0.00042156,31]
[340043216,1728384646430,-153.0,0.00042157,120]
[340043217,1728384646440,-153.0,0.00042157,120]
[340043218,1728384646450,-153.0,0.00042157,120]
[340043219,1728384646460,-153.0,0.00042157,120]
[340043220,1728384646470,-153.0,0.00042157,120]
[340043221,1728384646480,-153.0,0.00042157,120]
[340043222,1728384646493,-153.0,0.00042157,120]
[340043223,1728384646503,-153.0,0.00042171,120]
[340043224,1728384646512,-153.0,0.00042171,120]
[340043225,1728384646523,-153.0,0.00042171,120]
[340043226,1728384646537,-153.0,0.00042171,120]
[340043227,1728384646547,-153.0,0.00042171,120]
[340043228,1728384646673,-153.0,0.00042171,120]
[340043229,1728384646707,-153.0,0.00042171,120]
[340043230,1728384646718,-153.0,0.00042171,120]
[340043231,1728384646729,-153.0,0.00042171,120]
[340043232,1728384646739,-153.0,0.00042171,120]
[340043233,1728384646750,-153.0,0.00042173,120]
[340043234,1728384646760,-153.0,0.00042173,120]
[340043235,1728384646771,-153.0,0.00042173,120]
[340043236,1728384646781,-153.0,0.00042173,120]
[340043237,1728384646791,-153.0,0.00042173,120]
[340043238,1728384646801,-153.0,0.00042173,120]
[340043239,1728384646810,-153.0,0.00042173,120]
[340043240,1728384646820,-153.0,0.00042187,120]
[340043241,1728384646830,-153.0,0.00042187,120]
[340043242,1728384646839,-153.0,0.00042187,120]
[340043243,1728384646849,-153.0,0.00042187,120]
[340043244,1728384646859,-153.0,0.00042187,120]
[340043245,1728384646869,-153.0,0.00042187,120]
[340043246,1728384646879,-153.0,0.00042187,120]
[340043247,1728384646891,-153.0,0.00042187,120]
[340043248,1728384646902,-153.0,0.00042187,120]
[340043249,1728384646913,-153.0,0.00042187,120]
[340043250,1728384646924,-153.0,0.00042189,120]
[340043251,1728384646933,-153.0,0.00042189,120]
[340043252,1728384646947,-153.0,0.00042189,120]
[340043253,1728384646960,-153.0,0.00042189,120]
[340043254,1728384646969,-153.0,0.00042189,120]
[340043255,1728384646980,-153.0,0.00042189,120]
[340043256,1728384646990,-153.0,0.00042189,120]
[340043257,1728384647000,-1343.89143382,0.00042233,2]
[340043258,1728384647011,-600.0,0.00042234,2]
[340043259,1728384647021,-2000.0,0.0004235,120]
[340043260,1728384647031,-2000.0,0.0004235,120]
[340043261,1728384647041,-2000.0,0.0004235,120]
[340043262,1728384647051,-2000.0,0.0004235,120]
[340043263,1728384647061,-2547.6306275,0.000425,90]
[340043264,1728384647072,-500.0,0.00042639,2]
[340043265,1728384647083,-600.0,0.00042669,2]
[340043266,1728384647094,-1323.47,0.00042739,120]
[340043267,1728384647105,-221.98,0.0004298,30]
[340043268,1728384647119,-184.98,0.0004298,30]
[340043269,1728384647129,-154.15,0.0004298,30]
[340043270,1728384647141,-770.8,0.0004298,30]
[340043271,1728384647151,-383.58,0.0004299,30]
[340043272,1728384647161,-319.65,0.0004299,30]
[340043273,1728384647172,-266.38,0.0004299,30]
[340043274,1728384647184,-2000.0,0.00043,43]
[340043275,1728384647195,-187.79,0.00043095,10]
[340043276,1728384647206,-600.0,0.00043105,2]
[340043277,1728384647216,-167.14864417,0.00043187,2]
[340043278,1728384647227,-1323.47,0.00043287,120]
[340043279,1728384647237,-153.0,0.00043288,30]
[340043280,1728384647247,-153.0,0.00043288,30]
[340043281,1728384647257,-153.0,0.00043288,30]
[340043282,1728384647267,-156.49,0.00043304,10]
[340043283,1728384647277,-500.0,0.00043305,14]
[340043284,1728384647286,-500.0,0.00043314,14]
[340043285,1728384647297,-500.0,0.00043323,14]
[340043286,1728384647307,-5567.75409514,0.0004333,6]
[340043287,1728384647317,-62495.5088448,0.0004333,6]
[340043288,1728384647327,-500.0,0.00043331,14]
[340043289,1728384647336,-500.0,0.0004334,14]
[340043290,1728384647346,-500.0,0.00043349,14]
[340043291,1728384647355,-500.0,0.00043358,14]
[340043292,1728384647365,-500.0,0.00043367,14]
[340043293,1728384647375,-600.0,0.0004354,2]
[340043294,1728384647384,-856.26,0.000437,60]
[340043295,1728384647393,-1323.47,0.00043835,120]
[340043296,1728384647403,-500.0,0.00043835,120]
[340043297,1728384647413,-500.0,0.00043835,120]
[340043298,1728384647423,-500.0,0.00043835,120]
[340043299,1728384647432,-539.8439337,0.00043835,120]
[340043300,1728384647442,-600.0,0.00043975,2]
[340043301,1728384647452,-2000.0,0.00044,44]
[340043302,1728384647462,-209.3051165,0.0004411,30]
[340043303,1728384647471,-308.3162392,0.0004411,30]
[340043304,1728384647481,-1323.47,0.00044383,120]
[340043305,1728384647494,-600.0,0.00044411,2]
[340043306,1728384647504,-150.0,0.00044424,2]
[340043307,1728384647513,-1218.0,0.00044424,2]
[340043308,1728384647523,-150.0,0.00044657,120]
[340043309,1728384647533,-150.0,0.00044657,120]
[340043310,1728384647542,-200.43345438,0.00044657,120]
[340043311,1728384647552,-150.0,0.00044657,120]
[340043312,1728384647561,-150.0,0.00044657,120]
[340043313,1728384647571,-200.98797408,0.00044657,120]
[340043314,1728384647580,-500.0,0.00044657,120]
[340043315,1728384647590,-500.0,0.00044657,120]
[340043316,1728384647599,-500.0,0.00044657,120]
[340043317,1728384647609,-500.0,0.00044657,120]
[340043318,1728384647618,-500.0,0.00044657,120]
[340043319,1728384647628,-500.0,0.00044657,120]
[340043320,1728384647638,-500.0,0.00044657,120]
[340043321,1728384647658,-681.522763,0.00044657,120]
[340043322,1728384647669,-150.0,0.00044657,120]
[340043323,1728384647679,-150.0,0.00044657,120]
[340043324,1728384647689,-200.55925796,0.00044657,120]
[340043325,1728384647699,-400.0,0.00044658,2]
[340043326,1728384647710,-980.99212005,0.00044846,2]
[340043327,1728384647719,-1323.47,0.00044931,120]
[340043328,1728384647730,-2000.0,0.00045,45]
[340043329,1728384647740,-300.0,0.00045,120]
[340043330,1728384647749,-321.60162775,0.00045,120]
[340043331,1728384647760,-433.165099,0.00045105,120]
[340043332,1728384647771,-1323.47,0.00045479,120]
[340043333,1728384647787,-2000.0,0.00046,46]
[340043334,1728384647796,-1323.47,0.00046027,120]
[340043335,1728384647806,-160.0,0.00046967,3]
[340043336,1728384647815,-500.0,0.00046999,120]
[340043337,1728384647825,-500.0,0.00046999,120]
[340043338,1728384647835,-500.0,0.00046999,120]
[340043339,1728384647844,-412.65433832,0.00046999,120]
[340043340,1728384647853,-500.0,0.00046999,120]
[340043341,1728384647863,-265.1907185,0.00046999,120]
[340043342,1728384647873,-500.0,0.00046999,120]
[340043343,1728384647883,-2000.0,0.00047,47]
[340043344,1728384647893,-150.0,0.00047,90]
[340043345,1728384647903,-1323.47,0.00047123,120]
[340043346,1728384647912,-152.0,0.00047132,60]
[340043347,1728384647922,-1218.0,0.00047424,2]
[340043348,1728384647932,-152.0,0.00047625,60]
[340043349,1728384647942,-1323.47,0.00047671,120]
[340043350,1728384647953,-2413.26985018,0.0004799,120]
[340043351,1728384647965,-2000.0,0.00048,48]
[340043352,1728384647976,-152.0,0.00048117,60]
[340043353,1728384647986,-1323.47,0.00048219,120]
[340043354,1728384647998,-152.0,0.0004861,60]
[340043355,1728384648009,-1323.47,0.00048767,120]
[340043356,1728384648020,-5567.75409514,0.00048814,7]
[340043357,1728384648030,-62495.5088448,0.00048814,7]
[340043358,1728384648040,-6195.0,0.00048888,120]
[340043359,1728384648050,-12678.01954583,0.0004889,120]
[340043360,1728384648066,-6250.5,0.0004889,120]
[340043440,1728385838495,-389.848589,0.0004,2]
[340043441,1728385838506,-2519.79991467,0.00040085,2]
[340043489,1728387038386,-1499.999999,0.0002799,2]
[340043490,1728387038396,-300.0,0.00033846,2]
[340043491,1728387038406,-300.0,0.00033846,2]
[340043492,1728387038416,-5123.98700208,0.00033847,7]
[340043493,1728387038425,-150.0,0.00033848,2]
[340043494,1728387038435,-525.0,0.00033848,2]
[340043495,1728387038446,-303.8063674,0.00034996,2]
[340043496,1728387038457,-7225.1847797,0.00035401,2]
[340043497,1728387038467,-170.487982,0.00037913,2]
[340043498,1728387038478,-170.487982,0.00038111,2]
[340043499,1728387038487,-170.487982,0.00038308,2]
[340043500,1728387038498,-170.487982,0.00038506,2]
[340043501,1728387038509,-170.487982,0.00038703,2]
[340043502,1728387038519,-1767.67198429,0.00038759,2]
[340043503,1728387038529,-634.43,0.00038859,3]
[340043504,1728387038540,-515.32,0.00038859,10]
[340043505,1728387038550,-500.0,0.00038859,15]
[340043506,1728387038559,-500.0,0.00038859,15]
[340043507,1728387038569,-500.0,0.00038859,15]
[340043508,1728387038577,-500.0,0.00038859,15]
[340043509,1728387038588,-500.0,0.00038859,15]
[340043510,1728387038599,-500.00018,0.00038859,15]
[340043511,1728387038610,-500.0,0.00038859,15]
[340043512,1728387038621,-500.0,0.00038859,15]
[340043513,1728387038631,-500.0,0.00038859,15]
[340043514,1728387038642,-500.0,0.00038859,15]
[340043515,1728387038655,-500.0,0.00038859,15]
[340043516,1728387038665,-500.0,0.00038859,15]
[340043517,1728387038676,-500.0,0.00038859,15]
[340043518,1728387038686,-500.0,0.00038859,15]
[340043519,1728387038696,-500.0,0.00038859,15]
[340043520,1728387038707,-500.0,0.00038859,15]
[340043521,1728387038718,-500.0,0.00038859,15]
[340043522,1728387038728,-500.0,0.00038859,15]
[340043523,1728387038738,-500.0,0.00038859,15]
[340043524,1728387038748,-500.0,0.00038859,15]
[340043525,1728387038757,-500.0,0.00038859,15]
[340043526,1728387038767,-500.0,0.00038859,15]
[340043527,1728387038776,-500.0,0.00038859,15]
[340043528,1728387038787,-500.0,0.00038859,15]
[340043529,1728387038800,-500.0,0.00038859,15]
[340043530,1728387038811,-500.0,0.00038859,15]
[340043531,1728387038821,-500.0,0.00038859,15]
[340043532,1728387038832,-500.0,0.00038859,15]
[340043533,1728387038841,-500.0,0.00038859,15]
[340043534,1728387038851,-500.0,0.00038859,15]
[340043535,1728387038861,-500.0,0.00038859,15]
[340043536,1728387038873,-500.0,0.00038859,15]
[340043537,1728387038883,-500.0,0.00038859,15]
[340043538,1728387038998,-668.56644675,0.00038859,60]
[340043539,1728387039012,-211.46,0.0003886,3]
[340043540,1728387039022,-429.43,0.0003886,10]
[340043541,1728387039032,-56459.9141416,0.0003886,5]
[340043542,1728387039041,-516.32,0.00038869,2]
[340043543,1728387039051,-516.32,0.00038869,2]
[340043544,1728387039061,-516.32,0.00038869,2]
[340043545,1728387039072,-516.32,0.00038869,2]
[340043546,1728387039082,-516.32,0.00038869,2]
[340043547,1728387039093,-516.32,0.00038869,2]
[340043548,1728387039104,-516.32,0.00038869,2]
[340043549,1728387039113,-516.32,0.00038869,2]
[340043550,1728387039123,-516.32,0.00038869,2]
[340043551,1728387039133,-516.32,0.00038869,2]
[340043552,1728387039143,-500.0,0.00038869,15]
[340043553,1728387039153,-288.85803683,0.00038869,15]
[340043554,1728387039162,-500.0,0.00038869,15]
[340043555,1728387039173,-500.0,0.00038869,15]
[340043556,1728387039183,-489.09959282,0.00038869,15]
[340043557,1728387039193,-85394.4544847,0.0003887,5]
[340043558,1728387039203,-160659.04981088,0.0003887,5]
[340043562,1728387040256,-635.09,0.00033848,2]
[340043589,1728387043279,-582.91,0.00033848,2]
[340043591,1728387043289,-357.86,0.00038859,10]
[340043593,1728387043298,-3467.50130681,0.0003887,5]
[340043596,1728387043310,-8531.3,0.0003887,5]
[340043690,1728388232392,-276.50419662,0.000221,120]
[340043692,1728388232402,-261.84,0.0003,2]
[340043694,1728388232411,-250.0,0.00033568,2]
[340043696,1728388232421,-300.0,0.00033637,2]
[340043698,1728388232431,-303.8063674,0.00033637,2]
[340043700,1728388232442,-205.94690127,0.00033638,2]
[340043743,1728388238619,-8011.48787843,0.00033638,2]
[340043744,1728388238629,-165.543071,0.00033974,2]
[340043745,1728388238639,-165.543071,0.00034135,2]
[340043746,1728388238649,-165.543071,0.00034296,2]
[340043747,1728388238659,-165.543071,0.00034457,2]
[340043748,1728388238668,-165.543071,0.00034617,2]
[340043749,1728388238677,-150.0,0.00034632,2]
[340043750,1728388238691,-525.0,0.00034632,2]
[340043751,1728388238701,-165.543071,0.00034778,2]
[340043752,1728388238710,-165.543071,0.00034939,2]
[340043753,1728388238720,-505.8,0.00035,12]
[340043754,1728388238832,-165.543071,0.000351,2]
[340043755,1728388238849,-165.543071,0.00035261,2]
[340043756,1728388238858,-165.543071,0.00035422,2]
[340043757,1728388238867,-165.543071,0.00035583,2]
[340043758,1728388238877,-165.543071,0.00035744,2]
[340043759,1728388238889,-500.0,0.00036,13]
[340043760,1728388238899,-500.0,0.00037,14]
[340043761,1728388238910,-500.0,0.00037,15]
[340043762,1728388238921,-178.598,0.00037588,49]
[340043763,1728388238931,-30000.0,0.00038,10]
[340043764,1728388238942,-668.56644675,0.00038,60]
[340043765,1728388238952,-1767.67198429,0.000382,2]
[340043766,1728388238962,-3980.81175977,0.00038202,2]
[340043767,1728388238972,-3980.81175977,0.00038464,2]
[340043768,1728388238982,-500.38374245,0.000387,5]
[340043769,1728388238991,-500.0,0.00038733,5]
[340043770,1728388239001,-500.0,0.00038749,15]
[340043771,1728388239010,-500.0,0.00038749,15]
[340043772,1728388239019,-500.0,0.00038749,15]
[340043773,1728388239028,-500.0,0.00038749,15]
[340043774,1728388239037,-500.0,0.00038749,15]
[340043775,1728388239047,-500.0,0.00038749,15]
[340043776,1728388239056,-500.0,0.00038749,15]
[340043777,1728388239065,-500.0,0.00038749,15]
[340043778,1728388239075,-500.0,0.00038749,15]
[340043779,1728388239084,-500.0,0.00038749,15]
[340043780,1728388239094,-500.0,0.00038749,15]
[340043781,1728388239103,-500.0,0.00038749,15]
[340043782,1728388239112,-500.0,0.00038749,15]
[340043783,1728388239121,-500.0,0.00038749,15]
[340043784,1728388239131,-500.0,0.00038749,15]
[340043785,1728388239141,-500.0,0.00038749,15]
[340043786,1728388239150,-500.0,0.00038749,15]
[340043787,1728388239160,-500.0,0.00038749,15]
[340043788,1728388239170,-500.0,0.00038749,15]
[340043789,1728388239180,-500.0,0.00038749,15]
[340043790,1728388239190,-500.0,0.00038749,15]
[340043791,1728388239199,-500.0,0.00038749,15]
[340043792,1728388239208,-500.0,0.00038749,15]
[340043793,1728388239218,-500.0,0.00038749,15]
[340043794,1728388239228,-500.0,0.00038749,15]
[340043795,1728388239237,-500.0,0.00038749,15]
[340043796,1728388239246,-500.0,0.00038749,15]
[340043797,1728388239256,-500.0,0.00038749,15]
[340043798,1728388239265,-650.0001809,0.00038749,15]
[340043799,1728388239274,-500.0,0.00038749,15]
[340043800,1728388239283,-500.0,0.00038749,15]
[340043801,1728388239293,-500.0,0.00038749,15]
[340043802,1728388239302,-38403.6820149,0.0003875,60]
[340043803,1728388239311,-500.0,0.00038757,5]
[340043804,1728388239320,-500.0,0.00038757,2]
[340043805,1728388239331,-500.0,0.00038757,5]
[340043806,1728388239340,-455.67,0.00038758,10]
[340043807,1728388239350,-379.73,0.00038758,10]
[340043808,1728388239359,-211.46,0.00038829,3]
[340043809,1728388239368,-634.43,0.00038829,3]
[340043810,1728388239378,-19109.4130106,0.00038839,5]
[340043811,1728388239388,-53389.8528326,0.00038839,5]
[340043812,1728388239397,-500.0,0.00038839,15]
[340043813,1728388239407,-288.85803683,0.00038839,15]
[340043814,1728388239417,-489.09959282,0.00038839,15]
[340043815,1728388239427,-500.0,0.00038839,15]
[340043816,1728388239436,-500.0,0.00038839,15]
[340043817,1728388239446,-19109.4130106,0.0003884,5]
[340043818,1728388239456,-53389.8528326,0.0003884,5]
[340043819,1728388239466,-151.0,0.00038841,14]
[340043820,1728388239477,-151.0,0.00038841,14]
[340043821,1728388239485,-151.0,0.00038841,14]
[340043822,1728388239495,-151.0,0.00038841,14]
[340043823,1728388239504,-2761.296071,0.00038841,14]
[340043824,1728388239514,-151.0,0.00038841,14]
[340043825,1728388239523,-2761.296071,0.00038841,14]
[340043826,1728388239533,-236.838104,0.00038841,14]
[340043827,1728388239543,-151.0,0.00038849,14]
[340043828,1728388239553,-217.347016,0.00038849,14]
[340043829,1728388239563,-217.347016,0.00038849,14]
[340043830,1728388239575,-151.0,0.00038849,14]
[340043831,1728388239586,-245.658396,0.00038849,14]
[340043832,1728388239595,-151.0,0.00038849,2]
[340043833,1728388239605,-151.0,0.00038849,14]
[340043834,1728388239615,-151.0,0.00038849,14]
[340043835,1728388239624,-245.658396,0.00038849,14]
[340043836,1728388239634,-151.0,0.00038849,14]
[340043837,1728388239643,-356.713658,0.00038849,14]
[340043838,1728388239654,-151.0,0.00038849,14]
[340043839,1728388239664,-356.713658,0.00038849,14]
[340043840,1728388239674,-151.0,0.00038849,14]
[340043841,1728388239684,-151.502021,0.0003885,14]
[340043842,1728388239694,-151.0,0.0003885,14]
[340043843,1728388239705,-151.0,0.0003885,14]
[340043844,1728388239717,-151.0,0.0003885,14]
[340043845,1728388239728,-151.0,0.0003885,14]
[340043846,1728388239740,-217.347016,0.0003885,14]
[340043847,1728388239751,-217.347016,0.0003885,14]
[340043848,1728388239762,-217.347016,0.0003885,14]
[340043849,1728388239772,-217.347016,0.0003885,14]
[340043850,1728388239782,-151.0,0.0003885,14]
[340043851,1728388239793,-245.658396,0.0003885,14]
[340043852,1728388239804,-245.658396,0.0003885,14]
[340043853,1728388239815,-151.0,0.0003885,14]
[340043854,1728388239827,-151.0,0.0003885,14]
[340043855,1728388239838,-151.0,0.0003885,14]
[340043856,1728388239850,-245.658396,0.0003885,14]
[340043857,1728388239862,-245.658396,0.0003885,14]
[340043858,1728388239874,-151.0,0.0003885,14]
[340043859,1728388239885,-356.713658,0.0003885,14]
[340043860,1728388239897,-356.713658,0.0003885,14]
[340043861,1728388239907,-151.0,0.0003885,14]
[340043862,1728388239919,-356.713658,0.0003885,14]
[340043863,1728388239929,-356.713658,0.0003885,14]
[340043864,1728388239939,-151.0,0.0003885,14]
[340043865,1728388239950,-151.0,0.0003885,14]
[340043866,1728388239960,-151.0,0.0003885,14]
[340043867,1728388239972,-151.0,0.0003885,14]
[340043868,1728388239983,-151.0,0.0003885,14]
[340043869,1728388239993,-151.0,0.0003885,14]
[340043871,1728388240003,-151.0,0.0003885,14]
[340043872,1728388240014,-151.0,0.0003885,14]
[340043873,1728388240025,-151.0,0.0003885,14]
[340043874,1728388240035,-151.0,0.0003885,14]
[340043875,1728388240044,-151.0,0.0003885,14]
[340043876,1728388240055,-151.0,0.0003885,14]
[340043877,1728388240065,-151.0,0.0003885,14]
[340043878,1728388240076,-151.0,0.0003885,14]
[340043879,1728388240085,-151.0,0.0003885,14]
[340043880,1728388240096,-296.974532,0.0003885,14]
[340043881,1728388240106,-151.0,0.0003885,14]
[340043882,1728388240117,-151.0,0.0003885,14]
[340043883,1728388240127,-151.0,0.0003885,14]
[340043885,1728388240137,-165.902076,0.0003885,14]
[340043886,1728388240148,-151.0,0.0003885,14]
[340043887,1728388240158,-151.0,0.0003885,14]
[340043888,1728388240168,-151.0,0.0003885,14]
[340043889,1728388240180,-151.0,0.0003885,14]
[340043890,1728388240191,-151.0,0.0003885,14]
[340043891,1728388240201,-151.0,0.0003885,14]
[340043892,1728388240212,-151.0,0.0003885,14]
[340043893,1728388240223,-151.0,0.0003885,14]
[340043894,1728388240234,-151.0,0.0003885,14]
[340043896,1728388240245,-151.0,0.0003885,14]
[340043898,1728388240255,-151.0,0.0003885,14]
[340043899,1728388240267,-151.0,0.0003885,14]
[340043900,1728388240276,-151.0,0.0003885,14]
[340043901,1728388240287,-151.0,0.0003885,14]
[340043902,1728388240300,-151.0,0.0003885,14]
[340043903,1728388240311,-151.0,0.0003885,14]
[340043904,1728388240324,-151.0,0.0003885,14]
[340043905,1728388240337,-176.545592,0.0003885,14]
[340043907,1728388240348,-151.0,0.0003886,14]
[340043908,1728388240359,-151.0,0.0003886,14]
[340043909,1728388240368,-151.0,0.0003886,14]
[340043910,1728388240378,-151.886922,0.0003886,14]
[340043911,1728388240389,-151.0,0.0003886,14]
[340043912,1728388240400,-151.0,0.0003886,14]
[340043913,1728388240411,-151.0,0.0003886,14]
[340043914,1728388240421,-151.0,0.0003886,14]
[340043915,1728388240431,-151.0,0.0003886,14]
[340043916,1728388240442,-151.0,0.0003886,14]
[340043917,1728388240452,-151.0,0.0003886,14]
[340043918,1728388240464,-151.0,0.0003886,14]
[340043919,1728388240474,-156.199783,0.0003886,14]
[340043920,1728388240483,-151.0,0.0003886,14]
[340043921,1728388240493,-151.0,0.0003886,14]
[340043922,1728388240503,-170.009578,0.0003886,14]
[340043923,1728388240513,-151.0,0.0003886,14]
[340043924,1728388240525,-151.0,0.0003886,14]
[340043925,1728388240535,-151.0,0.0003886,14]
[340043926,1728388240546,-151.0,0.0003886,14]
[340043927,1728388240557,-151.0,0.0003886,14]
[340043928,1728388240568,-151.0,0.0003886,14]
[340043929,1728388240584,-12654.62370824,0.0003886,21]
[340043930,1728388240594,-151.0,0.0003886,14]
[340043931,1728388240604,-151.0,0.0003886,14]
[340043932,1728388240617,-151.0,0.0003886,14]
[340043933,1728388240628,-151.0,0.0003886,14]
[340043934,1728388240639,-151.0,0.0003886,14]
[340043935,1728388240727,-271.079208,0.0003886,14]
[340043936,1728388240737,-151.0,0.0003886,14]
[340043937,1728388240747,-151.0,0.0003886,14]
[340043938,1728388240759,-151.0,0.0003886,14]
[340043939,1728388240769,-151.0,0.0003886,14]